[Event "*** Titled Tuesday Blitz"]
[Site "Chess.com"]
[Date "2021.04.27"]
[Round "8"]
[White "UKR_Master"]
[Black "andriipalchuk"]
[Result "1-0"]
[WhiteElo "2485"]
[BlackElo "2572"]
[TimeControl "180+1"]
[EndTime "11:28:24 PDT"]
[Termination "UKR_Master won on time"]

1. e4 {[%clk 0:03:00.9]} 1... e5 {[%clk 0:02:57.8]} 2. Nf3 {[%clk 0:03:01]} 2...
Nc6 {[%clk 0:02:58.1]} 3. Bb5 {[%clk 0:03:01.5]} 3... a6 {[%clk 0:02:57.9]} 4.
Ba4 {[%clk 0:03:02.1]} 4... Nf6 {[%clk 0:02:58.1]} 5. O-O {[%clk 0:03:02.8]}
5... Nxe4 {[%clk 0:02:57.8]} 6. d4 {[%clk 0:03:02.7]} 6... b5 {[%clk 0:02:57.9]}
7. Bb3 {[%clk 0:03:03.3]} 7... d5 {[%clk 0:02:58.4]} 8. dxe5 {[%clk 0:03:04]}
8... Be6 {[%clk 0:02:58.5]} 9. c3 {[%clk 0:03:02.9]} 9... Bc5 {[%clk 0:02:58]}
10. Qe2 {[%clk 0:03:02.2]} 10... O-O {[%clk 0:02:54.2]} 11. Be3 {[%clk
0:03:02.4]} 11... Bxe3 {[%clk 0:02:52.2]} 12. Qxe3 {[%clk 0:03:03.3]} 12... Qe7
{[%clk 0:02:40.2]} 13. Nbd2 {[%clk 0:02:57]} 13... Nxd2 {[%clk 0:02:38.5]} 14.
Nxd2 {[%clk 0:02:52.6]} 14... Rfd8 {[%clk 0:02:33.7]} 15. Nf3 {[%clk 0:02:48.3]}
15... Na5 {[%clk 0:02:24]} 16. Rfd1 {[%clk 0:02:35.9]} 16... c5 {[%clk
0:02:15.6]} 17. h3 {[%clk 0:02:32.5]} 17... Rac8 {[%clk 0:02:10]} 18. Qf4 {[%clk
0:02:26.5]} 18... f6 {[%clk 0:01:48.1]} 19. Bc2 {[%clk 0:02:06.7]} 19... Nc4
{[%clk 0:01:24.1]} 20. Qh4 {[%clk 0:02:01.9]} 20... h6 {[%clk 0:00:55.7]} 21. b3
{[%clk 0:02:00.7]} 21... Nb6 {[%clk 0:00:54.5]} 22. Re1 {[%clk 0:01:57.6]} 22...
Re8 {[%clk 0:00:51]} 23. Bg6 {[%clk 0:01:03.2]} 23... Bf7 {[%clk 0:00:50.6]} 24.
Bf5 {[%clk 0:01:03.6]} 24... Rc6 {[%clk 0:00:39.4]} 25. Qg3 {[%clk 0:00:54.6]}
25... Qf8 {[%clk 0:00:29.4]} 26. Re2 {[%clk 0:00:49.4]} 26... fxe5 {[%clk
0:00:28.7]} 27. Nxe5 {[%clk 0:00:47.9]} 27... Rf6 {[%clk 0:00:29]} 28. Bc2
{[%clk 0:00:42]} 28... Ree6 {[%clk 0:00:19.6]} 29. Rae1 {[%clk 0:00:40.5]} 29...
Qe8 {[%clk 0:00:19.3]} 30. Qd3 {[%clk 0:00:38.4]} 30... Kf8 {[%clk 0:00:11.4]}
31. Qh7 {[%clk 0:00:36.1]} 31... Bg8 {[%clk 0:00:11.5]} 32. Qd3 {[%clk
0:00:26.8]} 32... Bf7 {[%clk 0:00:10.6]} 33. Qd2 {[%clk 0:00:21]} 33... Kg8
{[%clk 0:00:10.3]} 34. f3 {[%clk 0:00:17.6]} 34... Nd7 {[%clk 0:00:09.6]} 35.
Nxd7 {[%clk 0:00:14.5]} 35... Qxd7 {[%clk 0:00:09.1]} 36. Qd3 {[%clk 0:00:14.3]}
36... Bg6 {[%clk 0:00:07]} 37. Qd2 {[%clk 0:00:07.4]} 37... Bxc2 {[%clk
0:00:06.7]} 38. Qxc2 {[%clk 0:00:08.3]} 38... d4 {[%clk 0:00:05.3]} 39. cxd4
{[%clk 0:00:08.1]} 39... cxd4 {[%clk 0:00:06.2]} 40. Qd3 {[%clk 0:00:05]} 40...
Rxe2 {[%clk 0:00:05.3]} 41. Rxe2 {[%clk 0:00:05.9]} 41... Rc6 {[%clk 0:00:05.6]}
42. Rd2 {[%clk 0:00:05.6]} 42... Qd6 {[%clk 0:00:03.3]} 43. Qxd4 {[%clk
0:00:03.9]} 43... Rc1+ {[%clk 0:00:04]} 44. Kf2 {[%clk 0:00:04.6]} 44... Qxd4+
{[%clk 0:00:04.1]} 45. Rxd4 {[%clk 0:00:05.5]} 45... Rc2+ {[%clk 0:00:05]} 46.
Kg3 {[%clk 0:00:05.7]} 46... Rxa2 {[%clk 0:00:05.9]} 47. Rd7 {[%clk 0:00:06.2]}
47... a5 {[%clk 0:00:05.8]} 48. Rb7 {[%clk 0:00:06.1]} 48... b4 {[%clk
0:00:06.4]} 49. Rb5 {[%clk 0:00:06]} 49... Ra3 {[%clk 0:00:07.1]} 50. Kf4 {[%clk
0:00:05.3]} 50... Kh7 {[%clk 0:00:06.7]} 51. h4 {[%clk 0:00:05.6]} 51... Kg6
{[%clk 0:00:04.4]} 52. g4 {[%clk 0:00:05.3]} 52... Kh7 {[%clk 0:00:04.2]} 53. h5
{[%clk 0:00:05.6]} 53... Kg8 {[%clk 0:00:03.1]} 54. Ke4 {[%clk 0:00:05.5]} 54...
Kf7 {[%clk 0:00:03.3]} 55. Rb6 {[%clk 0:00:05.9]} 55... Rxb3 {[%clk 0:00:02.5]}
56. Rb7+ {[%clk 0:00:04.1]} 56... Kg8 {[%clk 0:00:02.4]} 57. f4 {[%clk 0:00:05]}
57... Rg3 {[%clk 0:00:02.2]} 58. Kf5 {[%clk 0:00:05.3]} 58... b3 {[%clk
0:00:02.1]} 59. g5 {[%clk 0:00:05.9]} 59... hxg5 {[%clk 0:00:02.6]} 60. fxg5
{[%clk 0:00:06.8]} 60... Kf8 {[%clk 0:00:01.1]} 61. Kg6 {[%clk 0:00:07.1]} 1-0

[Event "*** Titled Tuesday Blitz"]
[Site "Chess.com"]
[Date "2021.04.27"]
[Round "8"]
[White "GregShahade"]
[Black "Natalya_Buksa"]
[Result "0-1"]
[WhiteElo "2650"]
[BlackElo "2532"]
[TimeControl "180+1"]
[EndTime "11:28:25 PDT"]
[Termination "Natalya_Buksa won by checkmate"]

1. e4 {[%clk 0:03:00.9]} 1... c5 {[%clk 0:02:59.6]} 2. Nf3 {[%clk 0:03:01]} 2...
Nc6 {[%clk 0:02:59.5]} 3. d4 {[%clk 0:03:01.4]} 3... cxd4 {[%clk 0:03:00.2]} 4.
Nxd4 {[%clk 0:03:02]} 4... Nf6 {[%clk 0:03:00.3]} 5. Nc3 {[%clk 0:03:02.2]} 5...
e5 {[%clk 0:03:00.8]} 6. Ndb5 {[%clk 0:03:02.4]} 6... d6 {[%clk 0:03:01.4]} 7.
Bg5 {[%clk 0:03:03]} 7... a6 {[%clk 0:03:01.8]} 8. Na3 {[%clk 0:03:03.6]} 8...
b5 {[%clk 0:03:02.4]} 9. Nd5 {[%clk 0:03:04.2]} 9... Be7 {[%clk 0:03:02.8]} 10.
Bxf6 {[%clk 0:03:04.3]} 10... Bxf6 {[%clk 0:03:03.7]} 11. c4 {[%clk 0:03:04.7]}
11... b4 {[%clk 0:03:02.9]} 12. Nc2 {[%clk 0:03:04.6]} 12... O-O {[%clk
0:03:01.9]} 13. g3 {[%clk 0:03:05]} 13... a5 {[%clk 0:02:55]} 14. Bg2 {[%clk
0:03:03.2]} 14... g6 {[%clk 0:02:53]} 15. Nxf6+ {[%clk 0:02:58.3]} 15... Qxf6
{[%clk 0:02:52.3]} 16. O-O {[%clk 0:02:58.1]} 16... Rd8 {[%clk 0:02:24]} 17. b3
{[%clk 0:02:51.9]} 17... a4 {[%clk 0:02:17.1]} 18. Qd2 {[%clk 0:02:52]} 18...
Rb8 {[%clk 0:02:09.5]} 19. Rad1 {[%clk 0:02:43.4]} 19... Be6 {[%clk 0:02:08.9]}
20. Rfe1 {[%clk 0:02:31.7]} 20... Qe7 {[%clk 0:02:06.6]} 21. Re3 {[%clk
0:02:29.7]} 21... Qa7 {[%clk 0:02:04.6]} 22. Rd3 {[%clk 0:02:26.7]} 22... Rd7
{[%clk 0:01:29.2]} 23. Bf3 {[%clk 0:02:19.4]} 23... axb3 {[%clk 0:01:22.4]} 24.
axb3 {[%clk 0:02:18.3]} 24... Qa2 {[%clk 0:01:22.4]} 25. Ra1 {[%clk 0:01:37]}
25... Qb2 {[%clk 0:01:22.4]} 26. Qd1 {[%clk 0:01:36.3]} 26... Ra7 {[%clk
0:01:10.2]} 27. Rb1 {[%clk 0:01:23]} 27... Qa2 {[%clk 0:01:09.8]} 28. Rxd6
{[%clk 0:01:21.7]} 28... Na5 {[%clk 0:00:54.7]} 29. Ne3 {[%clk 0:01:10.8]} 29...
Kg7 {[%clk 0:00:53.2]} 30. Rd2 {[%clk 0:01:00]} 30... Qa3 {[%clk 0:00:52.4]} 31.
Nc2 {[%clk 0:00:50.5]} 31... Qa2 {[%clk 0:00:52.7]} 32. Nd4 {[%clk 0:00:34.4]}
32... Qa3 {[%clk 0:00:50.9]} 33. Ra1 {[%clk 0:00:15.8]} 33... exd4 {[%clk
0:00:47.7]} 34. Rxa3 {[%clk 0:00:15.8]} 34... bxa3 {[%clk 0:00:48.6]} 35. Rxd4
{[%clk 0:00:15.1]} 35... Nxb3 {[%clk 0:00:46.6]} 36. Rd2 {[%clk 0:00:05.3]}
36... a2 {[%clk 0:00:46.5]} 37. Rxa2 {[%clk 0:00:05]} 37... Rxa2 {[%clk
0:00:46.2]} 38. Kg2 {[%clk 0:00:05.3]} 38... Rd2 {[%clk 0:00:39.1]} 39. Qb1
{[%clk 0:00:04.7]} 39... Bxc4 {[%clk 0:00:34.4]} 40. Qe1 {[%clk 0:00:04.5]}
40... Be6 {[%clk 0:00:32.4]} 41. Qe3 {[%clk 0:00:04.7]} 41... Rc8 {[%clk
0:00:31.4]} 42. e5 {[%clk 0:00:03.7]} 42... Rcc2 {[%clk 0:00:29]} 43. Qg5 {[%clk
0:00:03.7]} 43... Rxf2+ {[%clk 0:00:28.5]} 44. Kg1 {[%clk 0:00:04.2]} 44... Rxf3
{[%clk 0:00:28.2]} 45. h4 {[%clk 0:00:04.8]} 45... Rcc3 {[%clk 0:00:25.3]} 46.
Kh2 {[%clk 0:00:04]} 46... h6 {[%clk 0:00:19.4]} 47. Qe7 {[%clk 0:00:04]} 47...
Rxg3 {[%clk 0:00:18.3]} 48. h5 {[%clk 0:00:04.6]} 48... Rgf3 {[%clk 0:00:12.2]}
49. hxg6 {[%clk 0:00:04.3]} 49... Kxg6 {[%clk 0:00:13.1]} 50. Qf8 {[%clk
0:00:04]} 50... Rg3 {[%clk 0:00:08.6]} 51. Qg8+ {[%clk 0:00:03.9]} 51... Kf5
{[%clk 0:00:08.8]} 52. Qh7+ {[%clk 0:00:04.3]} 52... Kf4 {[%clk 0:00:08.7]} 53.
Qxh6+ {[%clk 0:00:03.7]} 53... Kxe5 {[%clk 0:00:08.9]} 54. Qh5+ {[%clk
0:00:03.3]} 54... Kd6 {[%clk 0:00:06.6]} 55. Qd1+ {[%clk 0:00:03.7]} 55... Rcd3
{[%clk 0:00:06.3]} 56. Qf1 {[%clk 0:00:03]} 56... Rh3+ {[%clk 0:00:06.7]} 57.
Kg1 {[%clk 0:00:02.9]} 57... Rdg3+ {[%clk 0:00:07.1]} 58. Kf2 {[%clk 0:00:03]}
58... Rf3+ {[%clk 0:00:07.5]} 59. Kg2 {[%clk 0:00:03.1]} 59... Rxf1 {[%clk
0:00:08]} 60. Kxf1 {[%clk 0:00:03.6]} 60... Rc3 {[%clk 0:00:07.7]} 61. Kg2
{[%clk 0:00:04.5]} 61... Bd5+ {[%clk 0:00:08]} 62. Kh2 {[%clk 0:00:04.8]} 62...
Bc6 {[%clk 0:00:08.3]} 63. Kg1 {[%clk 0:00:05.2]} 63... f5 {[%clk 0:00:08.9]}
64. Kh2 {[%clk 0:00:06.1]} 64... Rc2+ {[%clk 0:00:09]} 65. Kg1 {[%clk 0:00:07]}
65... Bb5 {[%clk 0:00:09.4]} 66. Kh1 {[%clk 0:00:06.7]} 66... f4 {[%clk
0:00:10.1]} 67. Kg1 {[%clk 0:00:07.6]} 67... f3 {[%clk 0:00:10.6]} 68. Kh1
{[%clk 0:00:08.5]} 68... f2 {[%clk 0:00:11]} 69. Kg2 {[%clk 0:00:09.4]} 69...
f1=Q+ {[%clk 0:00:11.4]} 70. Kg3 {[%clk 0:00:10.3]} 70... Rg2+ {[%clk
0:00:11.2]} 71. Kh4 {[%clk 0:00:11.2]} 71... Qh1# {[%clk 0:00:12]} 0-1

[Event "*** Titled Tuesday Blitz"]
[Site "Chess.com"]
[Date "2021.04.27"]
[Round "8"]
[White "queen_iryna"]
[Black "woodhy"]
[Result "1-0"]
[WhiteElo "2403"]
[BlackElo "2480"]
[TimeControl "180+1"]
[EndTime "11:28:25 PDT"]
[Termination "queen_iryna won by resignation"]

1. e4 {[%clk 0:03:00.9]} 1... e6 {[%clk 0:01:24.4]} 2. d4 {[%clk 0:02:59.5]}
2... d5 {[%clk 0:01:23.6]} 3. Nc3 {[%clk 0:02:59.7]} 3... Bb4 {[%clk 0:01:23]}
4. e5 {[%clk 0:02:59.3]} 4... c5 {[%clk 0:01:22.4]} 5. a3 {[%clk 0:02:59.5]}
5... Bxc3+ {[%clk 0:01:22]} 6. bxc3 {[%clk 0:03:00.4]} 6... Ne7 {[%clk
0:01:22.6]} 7. Qg4 {[%clk 0:02:59.6]} 7... Qc7 {[%clk 0:01:22.4]} 8. Qxg7 {[%clk
0:02:51.7]} 8... Rg8 {[%clk 0:01:21.4]} 9. Qxh7 {[%clk 0:02:51.9]} 9... cxd4
{[%clk 0:01:22.3]} 10. Ne2 {[%clk 0:02:46.1]} 10... Nbc6 {[%clk 0:01:22.3]} 11.
f4 {[%clk 0:02:43.1]} 11... dxc3 {[%clk 0:01:22.3]} 12. Qd3 {[%clk 0:02:40.9]}
12... Bd7 {[%clk 0:01:22.6]} 13. Rg1 {[%clk 0:02:36.3]} 13... a6 {[%clk
0:01:22.4]} 14. g4 {[%clk 0:02:33.4]} 14... Na5 {[%clk 0:01:09.3]} 15. Qxc3
{[%clk 0:02:28]} 15... Nc4 {[%clk 0:01:07.8]} 16. Nd4 {[%clk 0:02:17]} 16... Rc8
{[%clk 0:01:06]} 17. Bxc4 {[%clk 0:02:11.5]} 17... dxc4 {[%clk 0:01:06.9]} 18.
Qf3 {[%clk 0:01:55.4]} 18... Nd5 {[%clk 0:01:04.2]} 19. c3 {[%clk 0:01:53.6]}
19... Rh8 {[%clk 0:00:59.3]} 20. Rh1 {[%clk 0:01:44.8]} 20... Qb6 {[%clk
0:00:33.7]} 21. Bd2 {[%clk 0:01:30]} 21... Qb2 {[%clk 0:00:30.9]} 22. Rd1 {[%clk
0:01:27.8]} 22... Ba4 {[%clk 0:00:27.8]} 23. Rc1 {[%clk 0:01:21.7]} 23... Qxa3
{[%clk 0:00:24]} 24. h4 {[%clk 0:01:19.6]} 24... Qc5 {[%clk 0:00:22.2]} 25. h5
{[%clk 0:01:16.6]} 25... Bc6 {[%clk 0:00:22.6]} 26. Nxc6 {[%clk 0:01:13.9]}
26... Rxc6 {[%clk 0:00:23.5]} 27. h6 {[%clk 0:01:06.2]} 27... Rc7 {[%clk
0:00:23.6]} 28. h7 {[%clk 0:01:05.6]} 28... Rd7 {[%clk 0:00:23.6]} 29. Ke2
{[%clk 0:00:59.5]} 29... Qf8 {[%clk 0:00:23.6]} 30. Rh5 {[%clk 0:00:53.8]} 30...
Qg7 {[%clk 0:00:23.8]} 31. Rch1 {[%clk 0:00:53.7]} 31... Ne7 {[%clk 0:00:22]}
32. Rg5 {[%clk 0:00:48.6]} 32... Ng6 {[%clk 0:00:20.7]} 33. f5 {[%clk
0:00:43.8]} 33... Qxe5+ {[%clk 0:00:19.9]} 34. Qe3 {[%clk 0:00:40]} 34... Nf4+
{[%clk 0:00:19]} 35. Kf3 {[%clk 0:00:39]} 35... Rd3 {[%clk 0:00:19.1]} 36. Rg8+
{[%clk 0:00:36.4]} 36... Ke7 {[%clk 0:00:19.5]} 37. Rxh8 {[%clk 0:00:30.8]}
37... Rxe3+ {[%clk 0:00:20.4]} 38. Bxe3 {[%clk 0:00:31.1]} 38... Qd5+ {[%clk
0:00:17.8]} 39. Kxf4 {[%clk 0:00:30.5]} 39... Qxh1 {[%clk 0:00:18.4]} 40. Bc5+
{[%clk 0:00:29.1]} 40... Kd7 {[%clk 0:00:17.9]} 41. Bd4 {[%clk 0:00:29]} 41...
Qh2+ {[%clk 0:00:17.4]} 42. Kg5 {[%clk 0:00:28]} 42... exf5 {[%clk 0:00:17.3]}
43. gxf5 {[%clk 0:00:25.5]} 43... Ke7 {[%clk 0:00:14.7]} 44. Re8+ {[%clk
0:00:23]} 44... Kxe8 {[%clk 0:00:14.6]} 45. h8=Q+ {[%clk 0:00:23.9]} 45... Qxh8
{[%clk 0:00:14.7]} 46. Bxh8 {[%clk 0:00:24.8]} 46... a5 {[%clk 0:00:14.4]} 47.
Be5 {[%clk 0:00:23.2]} 47... a4 {[%clk 0:00:14.7]} 48. Bd6 {[%clk 0:00:23.2]}
48... Kd7 {[%clk 0:00:14.1]} 49. Bb4 {[%clk 0:00:22.9]} 49... Ke8 {[%clk
0:00:14.4]} 50. Kf6 {[%clk 0:00:22.8]} 50... b5 {[%clk 0:00:15.3]} 51. Ba3
{[%clk 0:00:22]} 51... Kd7 {[%clk 0:00:15.3]} 52. Kxf7 {[%clk 0:00:21.6]} 52...
Kc6 {[%clk 0:00:16]} 53. f6 {[%clk 0:00:21.6]} 53... Kd5 {[%clk 0:00:16.9]} 54.
Ke7 {[%clk 0:00:21.4]} 54... Ke4 {[%clk 0:00:17.8]} 55. f7 {[%clk 0:00:21.6]}
55... Kd3 {[%clk 0:00:18.7]} 56. Bb4 {[%clk 0:00:21.4]} 56... a3 {[%clk
0:00:18]} 57. Bxa3 {[%clk 0:00:21.6]} 57... Kxc3 {[%clk 0:00:18.4]} 58. f8=Q
{[%clk 0:00:21.7]} 58... Kb3 {[%clk 0:00:18.8]} 59. Qf3+ {[%clk 0:00:21.4]}
59... c3 {[%clk 0:00:19]} 60. Kd6 {[%clk 0:00:18.2]} 60... b4 {[%clk 0:00:17.8]}
61. Bxb4 {[%clk 0:00:18]} 61... Kxb4 {[%clk 0:00:18]} 62. Qd1 {[%clk 0:00:17.6]}
62... Ka3 {[%clk 0:00:17.3]} 63. Qc1+ {[%clk 0:00:18.1]} 63... Kb3 {[%clk
0:00:17.3]} 64. Kd5 {[%clk 0:00:18.4]} 64... c2 {[%clk 0:00:15]} 65. Kd4 {[%clk
0:00:18.5]} 65... Ka2 {[%clk 0:00:14.9]} 66. Kd3 {[%clk 0:00:18.2]} 66... Kb3
{[%clk 0:00:14.3]} 67. Qxc2+ {[%clk 0:00:18.5]} 67... Kb4 {[%clk 0:00:14.8]} 68.
Qb1+ {[%clk 0:00:17.7]} 68... Kc5 {[%clk 0:00:14.8]} 69. Qb3 {[%clk 0:00:17.6]}
69... Kd6 {[%clk 0:00:15.7]} 70. Qc4 {[%clk 0:00:17.8]} 70... Ke5 {[%clk
0:00:16.6]} 71. Qe4+ {[%clk 0:00:17.1]} 71... Kf6 {[%clk 0:00:17.5]} 72. Kd4
{[%clk 0:00:16.7]} 72... Kf7 {[%clk 0:00:18.4]} 73. Qe5 {[%clk 0:00:16.8]} 73...
Kg6 {[%clk 0:00:19.3]} 74. Kd5 {[%clk 0:00:16.4]} 1-0

[Event "*** Titled Tuesday Blitz"]
[Site "Chess.com"]
[Date "2021.04.27"]
[Round "8"]
[White "TST2014"]
[Black "VerdeNotte"]
[Result "0-1"]
[WhiteElo "2668"]
[BlackElo "2883"]
[TimeControl "180+1"]
[EndTime "11:28:26 PDT"]
[Termination "VerdeNotte won by checkmate"]

1. d4 {[%clk 0:03:00.9]} 1... d6 {[%clk 0:02:59.7]} 2. Nf3 {[%clk 0:03:00.5]}
2... g6 {[%clk 0:03:00]} 3. c4 {[%clk 0:02:59.2]} 3... Bg7 {[%clk 0:02:59.7]} 4.
Nc3 {[%clk 0:02:59.2]} 4... e5 {[%clk 0:02:59.5]} 5. dxe5 {[%clk 0:02:47.3]}
5... dxe5 {[%clk 0:03:00.4]} 6. Qxd8+ {[%clk 0:02:47.3]} 6... Kxd8 {[%clk
0:03:01.3]} 7. Bd2 {[%clk 0:02:47.3]} 7... c6 {[%clk 0:02:57.3]} 8. O-O-O {[%clk
0:02:47.1]} 8... Nd7 {[%clk 0:02:49.4]} 9. Ng5 {[%clk 0:02:37.2]} 9... Ke7
{[%clk 0:02:44.5]} 10. Nce4 {[%clk 0:02:34.7]} 10... a5 {[%clk 0:02:33.9]} 11.
Bc3 {[%clk 0:02:10.4]} 11... Bh6 {[%clk 0:02:25.8]} 12. f4 {[%clk 0:01:24.7]}
12... f6 {[%clk 0:02:25.4]} 13. Nh3 {[%clk 0:01:05.2]} 13... exf4 {[%clk
0:02:18.3]} 14. Bd2 {[%clk 0:00:51.9]} 14... g5 {[%clk 0:02:16.7]} 15. e3 {[%clk
0:00:47.4]} 15... fxe3 {[%clk 0:02:03.2]} 16. Bxe3 {[%clk 0:00:47]} 16... g4
{[%clk 0:02:03.8]} 17. Nf4 {[%clk 0:00:45.5]} 17... f5 {[%clk 0:01:54]} 18. Nd6
{[%clk 0:00:42.5]} 18... Ne5 {[%clk 0:01:54.2]} 19. c5 {[%clk 0:00:38]} 19...
Nf6 {[%clk 0:01:53.6]} 20. Bc4 {[%clk 0:00:35.4]} 20... Nxc4 {[%clk 0:01:49.6]}
21. Nxc4 {[%clk 0:00:34.4]} 21... Be6 {[%clk 0:01:38.5]} 22. Nxe6 {[%clk
0:00:33.1]} 22... Bxe3+ {[%clk 0:01:38.3]} 23. Nxe3 {[%clk 0:00:33.6]} 23...
Kxe6 {[%clk 0:01:39]} 24. Rhe1 {[%clk 0:00:33.6]} 24... Rad8 {[%clk 0:01:30.9]}
25. Nc4+ {[%clk 0:00:32.5]} 25... Ne4 {[%clk 0:01:29.5]} 26. Nd6 {[%clk
0:00:32.5]} 26... b5 {[%clk 0:01:07]} 27. Nxe4 {[%clk 0:00:31.7]} 27... Rxd1+
{[%clk 0:01:06.6]} 28. Kxd1 {[%clk 0:00:32.5]} 28... fxe4 {[%clk 0:01:07.1]} 29.
Rxe4+ {[%clk 0:00:33.2]} 29... Kd5 {[%clk 0:01:00.4]} 30. Rxg4 {[%clk
0:00:33.2]} 30... Kxc5 {[%clk 0:01:01.1]} 31. Rh4 {[%clk 0:00:31.2]} 31... Rg8
{[%clk 0:00:57.7]} 32. g3 {[%clk 0:00:31.3]} 32... Rg7 {[%clk 0:00:57.7]} 33.
Kd2 {[%clk 0:00:31.6]} 33... Rf7 {[%clk 0:00:47.4]} 34. Kd3 {[%clk 0:00:29.7]}
34... Rf2 {[%clk 0:00:45.4]} 35. Kc3 {[%clk 0:00:29.1]} 35... b4+ {[%clk
0:00:45.5]} 36. Kb3 {[%clk 0:00:27.7]} 36... a4+ {[%clk 0:00:41.4]} 37. Kxa4
{[%clk 0:00:22.9]} 37... Rxb2 {[%clk 0:00:41.7]} 38. a3 {[%clk 0:00:22.4]} 38...
bxa3 {[%clk 0:00:24.7]} 39. Kxa3 {[%clk 0:00:22]} 39... Rb7 {[%clk 0:00:25.3]}
40. Rh6 {[%clk 0:00:19.1]} 40... Kd5 {[%clk 0:00:25.2]} 41. g4 {[%clk
0:00:18.3]} 41... c5 {[%clk 0:00:25.1]} 42. g5 {[%clk 0:00:18.6]} 42... c4
{[%clk 0:00:22.5]} 43. Rh5 {[%clk 0:00:17.7]} 43... Kd4 {[%clk 0:00:21.3]} 44.
Rh4+ {[%clk 0:00:18.1]} 44... Kc3 {[%clk 0:00:20.2]} 45. Rh3+ {[%clk 0:00:18.3]}
45... Kd2 {[%clk 0:00:19.1]} 46. Rg3 {[%clk 0:00:17.6]} 46... c3 {[%clk
0:00:13.9]} 47. Rg2+ {[%clk 0:00:17.9]} 47... Kd1 {[%clk 0:00:12.7]} 48. Rg1+
{[%clk 0:00:18.1]} 48... Ke2 {[%clk 0:00:13.1]} 49. Rg2+ {[%clk 0:00:18.7]}
49... Ke3 {[%clk 0:00:12.4]} 50. Rg3+ {[%clk 0:00:19.1]} 50... Kd4 {[%clk
0:00:12.9]} 51. Rg4+ {[%clk 0:00:19.4]} 51... Kd5 {[%clk 0:00:13.3]} 52. Rg3
{[%clk 0:00:16.4]} 52... Rc7 {[%clk 0:00:11.5]} 53. Rg1 {[%clk 0:00:14.8]} 53...
Kc4 {[%clk 0:00:11.3]} 54. Ka2 {[%clk 0:00:14.6]} 54... Ra7+ {[%clk 0:00:09.4]}
55. Kb1 {[%clk 0:00:14.4]} 55... Kb3 {[%clk 0:00:09.9]} 56. Rg3 {[%clk
0:00:12.8]} 56... Rf7 {[%clk 0:00:09.3]} 57. Rg1 {[%clk 0:00:12]} 57... Rf2
{[%clk 0:00:08.3]} 58. h4 {[%clk 0:00:11.7]} 58... Rb2+ {[%clk 0:00:07.6]} 59.
Kc1 {[%clk 0:00:11.7]} 59... Ra2 {[%clk 0:00:08]} 60. g6 {[%clk 0:00:02.8]}
60... Ra1# {[%clk 0:00:08.1]} 0-1

[Event "*** Titled Tuesday Blitz"]
[Site "Chess.com"]
[Date "2021.04.27"]
[Round "8"]
[White "CSB7"]
[Black "Iball95"]
[Result "0-1"]
[WhiteElo "2730"]
[BlackElo "2636"]
[TimeControl "180+1"]
[EndTime "11:28:29 PDT"]
[Termination "Iball95 won by checkmate"]

1. e4 {[%clk 0:03:00.9]} 1... c5 {[%clk 0:03:00]} 2. Nf3 {[%clk 0:02:59.6]} 2...
Nc6 {[%clk 0:02:59.3]} 3. d4 {[%clk 0:02:58.4]} 3... cxd4 {[%clk 0:03:00.2]} 4.
Nxd4 {[%clk 0:02:59.3]} 4... g6 {[%clk 0:03:00.3]} 5. Nc3 {[%clk 0:02:57.5]}
5... Bg7 {[%clk 0:03:00.2]} 6. Be3 {[%clk 0:02:58]} 6... Nf6 {[%clk 0:03:00.2]}
7. Bc4 {[%clk 0:02:56.5]} 7... O-O {[%clk 0:02:55.9]} 8. Bb3 {[%clk 0:02:56.9]}
8... a5 {[%clk 0:02:55.8]} 9. O-O {[%clk 0:02:55]} 9... d6 {[%clk 0:02:53.3]}
10. f3 {[%clk 0:02:51.7]} 10... Nxd4 {[%clk 0:02:53.1]} 11. Bxd4 {[%clk
0:02:50.4]} 11... Bd7 {[%clk 0:02:54]} 12. a4 {[%clk 0:02:34.1]} 12... Bc6
{[%clk 0:02:54.2]} 13. Nd5 {[%clk 0:02:12]} 13... Nxd5 {[%clk 0:02:41.7]} 14.
exd5 {[%clk 0:02:02.9]} 14... Bd7 {[%clk 0:02:37]} 15. Re1 {[%clk 0:01:57.3]}
15... Re8 {[%clk 0:02:36]} 16. Bxg7 {[%clk 0:01:56.4]} 16... Kxg7 {[%clk
0:02:36.9]} 17. Qd4+ {[%clk 0:01:56.4]} 17... Kg8 {[%clk 0:02:34.8]} 18. Bc4
{[%clk 0:01:48.9]} 18... Qc7 {[%clk 0:02:34.1]} 19. b3 {[%clk 0:01:45.5]} 19...
Qc5 {[%clk 0:02:16]} 20. Qxc5 {[%clk 0:01:12.7]} 20... dxc5 {[%clk 0:02:16.9]}
21. Kf2 {[%clk 0:01:13]} 21... Kf8 {[%clk 0:02:14.7]} 22. h4 {[%clk 0:01:10.1]}
22... Rad8 {[%clk 0:02:08.1]} 23. Rad1 {[%clk 0:00:58.1]} 23... h5 {[%clk
0:01:41.8]} 24. Re5 {[%clk 0:00:47.4]} 24... Bf5 {[%clk 0:01:37.9]} 25. Rd2
{[%clk 0:00:32]} 25... Rd6 {[%clk 0:01:32.9]} 26. Rde2 {[%clk 0:00:20.3]} 26...
Bd7 {[%clk 0:00:49.5]} 27. Kg3 {[%clk 0:00:14.1]} 27... Bc8 {[%clk 0:00:22]} 28.
Bb5 {[%clk 0:00:07]} 28... Bd7 {[%clk 0:00:21.5]} 29. c4 {[%clk 0:00:07.1]}
29... Bxb5 {[%clk 0:00:20.8]} 30. axb5 {[%clk 0:00:08]} 30... b6 {[%clk
0:00:18.3]} 31. Kf4 {[%clk 0:00:07.4]} 31... Rd7 {[%clk 0:00:17.7]} 32. g4
{[%clk 0:00:07.1]} 32... hxg4 {[%clk 0:00:18.6]} 33. fxg4 {[%clk 0:00:08]} 33...
Ra8 {[%clk 0:00:18.7]} 34. Ra2 {[%clk 0:00:06.6]} 34... Rda7 {[%clk 0:00:18.1]}
35. h5 {[%clk 0:00:05.7]} 35... Kg7 {[%clk 0:00:16]} 36. hxg6 {[%clk 0:00:04.2]}
36... Kxg6 {[%clk 0:00:16.9]} 37. Rae2 {[%clk 0:00:03.9]} 37... Kf6 {[%clk
0:00:15.9]} 38. g5+ {[%clk 0:00:02.8]} 38... Kg6 {[%clk 0:00:14.8]} 39. Rxe7
{[%clk 0:00:03.7]} 39... a4 {[%clk 0:00:15.1]} 40. Rxa7 {[%clk 0:00:03.4]} 40...
Rxa7 {[%clk 0:00:16]} 41. Ra2 {[%clk 0:00:02.1]} 41... a3 {[%clk 0:00:15.7]} 42.
Kg4 {[%clk 0:00:02.5]} 42... f6 {[%clk 0:00:15.9]} 43. gxf6 {[%clk 0:00:02.6]}
43... Kxf6 {[%clk 0:00:16.8]} 44. Kf4 {[%clk 0:00:03.2]} 44... Ra8 {[%clk
0:00:17.1]} 45. Ke4 {[%clk 0:00:03.3]} 45... Ra7 {[%clk 0:00:16.4]} 46. Rf2+
{[%clk 0:00:02.3]} 46... Kg6 {[%clk 0:00:16]} 47. Ra2 {[%clk 0:00:02.9]} 47...
Kf6 {[%clk 0:00:16.5]} 48. Kd3 {[%clk 0:00:02.7]} 48... Ke5 {[%clk 0:00:17.4]}
49. Re2+ {[%clk 0:00:02]} 49... Kf6 {[%clk 0:00:16.1]} 50. Re1 {[%clk
0:00:02.2]} 50... a2 {[%clk 0:00:15.7]} 51. Ra1 {[%clk 0:00:02.4]} 51... Ke5
{[%clk 0:00:15.8]} 52. Kc3 {[%clk 0:00:02.9]} 52... Ke4 {[%clk 0:00:15.9]} 53.
Re1+ {[%clk 0:00:03.2]} 53... Kf3 {[%clk 0:00:15.6]} 54. Kb2 {[%clk 0:00:03.7]}
54... Ra8 {[%clk 0:00:14.5]} 55. Ra1 {[%clk 0:00:04.1]} 55... Ke4 {[%clk
0:00:14.5]} 56. Rxa2 {[%clk 0:00:04.4]} 56... Rh8 {[%clk 0:00:14.8]} 57. Ra7
{[%clk 0:00:04.3]} 57... Kd4 {[%clk 0:00:13.6]} 58. Rf7 {[%clk 0:00:03.5]} 58...
Rh2+ {[%clk 0:00:13.4]} 59. Ka3 {[%clk 0:00:04]} 59... Kc3 {[%clk 0:00:13.7]}
60. Rf3+ {[%clk 0:00:03.9]} 60... Kc2 {[%clk 0:00:13.7]} 61. d6 {[%clk
0:00:03.3]} 61... Rh1 {[%clk 0:00:13.7]} 62. Ka2 {[%clk 0:00:03]} 62... Rh8
{[%clk 0:00:11.4]} 63. d7 {[%clk 0:00:03]} 63... Ra8# {[%clk 0:00:11.3]} 0-1